[Event "1st Turkish League 2017"]
[Site "Konya"]
[Date "2017.07.19"]
[Round "3"]
[White "Saim, Sida"]
[Black "Yorgun, Yaren Naz"]
[Result "1/2-1/2"]
[ECO "E14"]
[WhiteElo "1634"]
[BlackElo "1733"]
[Annotator "NA"]
[PlyCount "130"]
[EventType "team-tourn"]
[EventCountry "TUR"]
[SourceTitle "playchess.com"]
[Source "ChessBase"]
[SourceQuality "1"]
[TimeControl "5400+30"]

1. d4 {[%emt 0:00:30]} d5 {[%emt 0:01:00]} 2. Nf3 {[%emt 0:00:00]} Nf6 {[%emt 0:00:00]} 3. e3 {[%emt 0:00:00]} e6 {[%emt 0:00:00]} 4. c4 {[%emt 0:00:30]} Be7 {[%emt 0:00:30]} 5. Nc3 {[%emt 0:00:30]} O-O {[%emt 0:00:00]} 6. Bd3 {[%emt 0:00:30]} b6 {[%emt 0:00:00]} 7. O-O {[%emt 0:01:30]} Bb7 {[%emt 0:00:30]} 8. b3 {[%emt 0:00:30]} Nbd7 {[%emt 0:03:30]} 9. Bb2 {[%emt 0:01:30]} c5 {[%emt 0:02:30]} 10. cxd5 {[%emt 0:02:30]} Nxd5 {[%emt 0:01:30]} 11. Nxd5 {[%emt 0:05:30]} Bxd5 {[%emt 0:01:30]} 12. Rc1 {[%emt 0:03:30]} cxd4 {[%emt 0:03:30]} 13. exd4 {[%emt 0:05:30]} Nf6 {[%emt 0:03:30]} 14. Bc4 {[%emt 0:03:30]} Bb7 {[%emt 0:02:30]} 15. Ne5 {[%emt 0:05:30]} Nd5 {[%emt 0:07:30]} 16. Bb5 {[%emt 0:04:30]} a6 {[%emt 0:06:30]} 17. Bc6 {[%emt 0:02:30]} Bxc6 {[%emt 0:01:30]} 18. Nxc6 {[%emt 0:03:30]} Qd6 {[%emt 0:02:30]} 19. Nxe7+ {[%emt 0:02:30]} Nxe7 {[%emt 0:05:30]} 20. Qf3 {[%emt 0:08:30]} Nd5 {[%emt 0:06:30]} 21. Rc4 {[%emt 0:02:30]} Qf4 {[%emt 0:08:30]} 22. Qe2 {[%emt 0:00:30]} Qf5 {[%emt 0:03:30]} 23. g3 {[%emt 0:05:30]} Rfd8 {[%emt 0:04:30]} 24. Rfc1 {[%emt 0:03:30]} Qg6 {[%emt 0:02:30]} 25. a3 {[%emt 0:07:30]} h6 {[%emt 0:05:30]} 26. Qc2 {[%emt 0:06:30]} Qxc2 {[%emt 0:00:30]} 27. R4xc2 {[%emt 0:00:00]} Ra7 {[%emt 0:04:30]} 28. Kf1 {[%emt 0:04:00]} Rad7 {[%emt 0:03:30]} 29. Ke2 {[%emt 0:00:30]} Ne7 {[%emt 0:01:30]} 30. Rc7 {[%emt 0:01:30]} Rxc7 {[%emt 0:00:50]} 31. Rxc7 {[%emt 0:00:00]} Nd5 {[%emt 0:05:43]} 32. Rc6 {[%emt 0:01:14]} Kf8 {[%emt 0:03:01]} 33. a4 {[%emt 0:00:16]} Ke8 {[%emt 0:02:14]} 34. Ba3 {[%emt 0:00:30]} Rb8 {[%emt 0:01:21]} 35. Bd6 {[%emt 0:03:09]} Kd7 {[%emt 0:01:33]} 36. Bxb8 {[%emt 0:01:26]} Kxc6 {[%emt 0:00:14]} 37. Kd2 {[%emt 0:02:48]} f6 {[%emt 0:03:12]} 38. g4 {[%emt 0:01:57]} Ne7 {[%emt 0:01:26]} 39. Kd3 {[%emt 0:00:56]} Nc8 {[%emt 0:01:04]} 40. Bf4 {[%emt 0:04:21]} Kd5 {[%emt 0:01:41]} 41. Be3 {[%emt 0:02:05]} Ne7 {[%emt 0:00:36]} 42. f3 {[%emt 0:02:01]} Nc6 {[%emt 0:00:30]} 43. h3 {[%emt 0:01:49]} Nb4+ {[%emt 0:01:39]} 44. Kc3 {[%emt 0:00:34]} Nc6 {[%emt 0:00:01]} 45. Kd3 {[%emt 0:00:00]} b5 {[%emt 0:00:05]} 46. axb5 {[%emt 0:03:01]} axb5 {[%emt 0:00:30]} 47. Bf2 {[%emt 0:00:30]} Na5 {[%emt 0:00:30]} 48. Kc3 {[%emt 0:00:30]} Nc6 {[%emt 0:00:30]} 49. Kd3 {[%emt 0:00:30]} f5 {[%emt 0:00:30]} 50. gxf5 {[%emt 0:00:30]} exf5 {[%emt 0:00:30]} 51. Bg1 {[%emt 0:00:30]} Ne7 {[%emt 0:00:30]} 52. Bh2 {[%emt 0:00:30]} Ng6 {[%emt 0:00:30]} 53. Bg3 {[%emt 0:01:16]} Nf8 {[%emt 0:00:58]} 54. Be5 {[%emt 0:00:57]} Ne6 {[%emt 0:00:01]} 55. Ke3 {[%emt 0:00:20]} g5 {[%emt 0:01:23]} 56. Kd3 {[%emt 0:00:27]} h5 {[%emt 0:01:31]} 57. Ke3 {[%emt 0:00:22]} g4 {[%emt 0:00:07]} 58. fxg4 {[%emt 0:00:30]} fxg4 {[%emt 0:00:03]} 59. hxg4 {[%emt 0:00:34]} hxg4 {[%emt 0:00:01]} 60. Kd3 {[%emt 0:00:30]} Ng5 {[%emt 0:00:37]} 61. Ke3 {[%emt 0:00:40]} Ne4 {[%emt 0:00:25]} 62. Bh2 {[%emt 0:00:35]} g3 {[%emt 0:01:22]} 63. Bg1 {[%emt 0:00:02]} Nf2 {[%emt 0:01:13]} 64. Kf3 {[%emt 0:00:31]} Ne4 {[%emt 0:00:33]} 65. Be3 {[%emt 0:00:22]} b4 {[%emt 0:00:32]} 1/2-1/2

[Event "1st Turkish League 2017"]
[Site "Konya"]
[Date "2017.07.18"]
[Round "3"]
[White "Yilmaz, Duygu Sila"]
[Black "Elma, Muge"]
[Result "0-1"]
[ECO "B52"]
[WhiteElo "1355"]
[BlackElo "1513"]
[Annotator "NA"]
[PlyCount "106"]
[EventType "team-tourn"]
[EventCountry "TUR"]
[SourceTitle "playchess.com"]
[Source "ChessBase"]
[SourceQuality "1"]
[TimeControl "5400+30"]

1. e4 c5 2. Nf3 d6 3. Bb5+ Bd7 4. Bxd7+ Nxd7 5. O-O Ngf6 6. Re1 e6 7. c3 Be7 8. d4 O-O 9. Bf4 cxd4 10. cxd4 d5 11. e5 Ne8 12. Nc3 Nb6 13. b3 Rc8 14. Bd2 Nc7 15. Ne2 Na6 16. a3 Qd7 17. Bg5 Rc7 18. Bxe7 Qxe7 19. b4 Rfc8 20. Qd3 Nc4 21. Rac1 Nb8 22. Nd2 Qd7 23. Nxc4 dxc4 24. Qe3 b5 25. Nc3 a6 26. f4 Nc6 27. Rcd1 Ne7 28. Ne4 Nd5 29. Qg3 Kh8 30. Nc5 Qc6 31. Qf3 Ne7 32. Qh5 Kg8 33. Re3 Nf5 34. Rh3 h6 35. d5 g6 36. Qxg6+ fxg6 37. dxc6 Rxc6 38. g4 Ne7 39. Rxh6 Kg7 40. Rh3 Nd5 41. Nxe6+ Rxe6 42. Rxd5 c3 43. Rc5 Rf8 44. Rc7+ Kg8 45. Rch7 Rc6 46. Rh8+ Kf7 47. R3h7+ Ke8 48. Rxf8+ Kxf8 49. e6 c2 50. e7+ Ke8 51. f5 c1=Q+ 52. Kf2 Rc2+ 53. Kf3 Qxa3+ 0-1

[Event "1st Turkish League 2017"]
[Site "Konya"]
[Date "2017.07.19"]
[Round "4"]
[White "Dedebas, Emre Emin"]
[Black "Gunduz, Umut Erdem"]
[Result "1-0"]
[ECO "D01"]
[WhiteElo "2322"]
[BlackElo "2066"]
[Annotator "ChessBase"]
[PlyCount "99"]
[EventType "team-tourn"]
[EventCountry "TUR"]
[SourceTitle "playchess.com"]
[Source "ChessBase"]
[SourceQuality "1"]
[TimeControl "5400+30"]

1. d4 {[%emt 0:01:30]} Nf6 {[%emt 0:01:00]} 2. Nc3 {[%emt 0:00:00]} d5 {[%emt 0:00:30]} 3. Nf3 {[%emt 0:00:00]} c6 {[%emt 0:00:30]} 4. Bg5 {[%emt 0:00:30]} Nbd7 {[%emt 0:00:30]} 5. e3 {[%emt 0:00:30]} Qa5 {[%emt 0:09:30]} 6. a3 {[%emt 0:27:30]} Ne4 {[%emt 0:05:30]} 7. b4 {[%emt 0:02:30]} Nxc3 {[%emt 0:00:30]} 8. Qd3 {[%emt 0:00:30]} Qb6 {[%emt 0:00:30]} 9. Qxc3 {[%emt 0:00:30]} a5 {[%emt 0:00:00]} 10. Rb1 {[%emt 0:11:30]} axb4 {[%emt 0:09:00]} 11. axb4 {[%emt 0:01:30]} Nf6 {[%emt 0:05:30]} 12. Bd3 {[%emt 0:03:30]} Ne4 {[%emt 0:06:30]} 13. Bxe4 {[%emt 0:03:30]} dxe4 {[%emt 0:00:30]} 14. Nd2 {[%emt 0:00:30]} Qb5 {[%emt 0:04:30]} 15. Qc5 {[%emt 0:08:30]} Ra2 {[%emt 0:18:30]} 16. Qxb5 {[%emt 0:21:31]} cxb5 {[%emt 0:00:00]} 17. O-O {[%emt 0:00:26]} f6 {[%emt 0:03:00]} 18. Bf4 {[%emt 0:00:32]} Bf5 {[%emt 0:00:30]} 19. Rfc1 {[%emt 0:02:00]} e6 {[%emt 0:07:30]} 20. Ra1 {[%emt 0:00:20]} Ra4 {[%emt 0:01:30]} 21. c3 {[%emt 0:06:32]} Kd7 {[%emt 0:01:30]} 22. Rxa4 {[%emt 0:03:06]} bxa4 {[%emt 0:00:30]} 23. Nc4 {[%emt 0:00:00]} b5 {[%emt 0:08:09]} 24. Na3 {[%emt 0:00:00]} Kc6 {[%emt 0:00:30]} 25. c4 {[%emt 0:00:00]} bxc4 {[%emt 0:01:28]} 26. Rxc4+ {[%emt 0:00:02]} Kd5 {[%emt 0:00:19]} 27. Rc8 {[%emt 0:00:31]} e5 {[%emt 0:07:47]} 28. Rd8+ {[%emt 0:00:30]} Ke6 {[%emt 0:00:00]} 29. b5 {[%emt 0:04:46]} Bxa3 {[%emt 0:06:28]} 30. Rxh8 {[%emt 0:00:30]} exf4 {[%emt 0:00:30]} 31. b6 {[%emt 0:00:00]} Bd6 {[%emt 0:02:04]} 32. b7 {[%emt 0:00:08]} fxe3 {[%emt 0:00:13]} 33. fxe3 {[%emt 0:00:19]} Kd7 {[%emt 0:01:03]} 34. b8=Q {[%emt 0:03:04]} Bxb8 {[%emt 0:00:30]} 35. Rxb8 {[%emt 0:00:30]} Kc7 {[%emt 0:00:00]} 36. Ra8 {[%emt 0:00:10]} Bd7 {[%emt 0:00:00]} 37. Ra7+ {[%emt 0:00:11]} Kc8 {[%emt 0:01:19]} 38. Kf2 {[%emt 0:00:47]} Bc6 {[%emt 0:00:34]} 39. d5 {[%emt 0:00:33]} Bxd5 {[%emt 0:01:20]} 40. Rxa4 {[%emt 0:00:02]} Bc6 {[%emt 0:00:09]} 41. Rd4 {[%emt 0:00:56]} Kc7 {[%emt 0:00:48]} 42. Kg3 {[%emt 0:00:05]} f5 {[%emt 0:00:27]} 43. Kf4 {[%emt 0:00:03]} g6 {[%emt 0:00:00]} 44. Ke5 {[%emt 0:00:30]} Bb5 {[%emt 0:00:08]} 45. Kf6 {[%emt 0:00:00]} Be2 {[%emt 0:01:01]} 46. Kg7 {[%emt 0:00:32]} Bh5 {[%emt 0:00:33]} 47. Kxh7 {[%emt 0:00:38]} Kc6 {[%emt 0:00:30]} 48. Kh6 {[%emt 0:00:00]} Kc7 {[%emt 0:00:08]} 49. Kg5 {[%emt 0:00:21]} Kc6 {[%emt 0:00:30]} 50. h3 {[%emt 0:00:00]} 1-0

[Event "1st Turkish League 2017"]
[Site "Konya"]
[Date "2017.07.19"]
[Round "4"]
[White "Eminov, Orkhan"]
[Black "Ozkan, Ervin"]
[Result "1-0"]
[ECO "C01"]
[WhiteElo "2274"]
[BlackElo "2206"]
[Annotator "NA"]
[PlyCount "83"]
[EventType "team-tourn"]
[EventCountry "TUR"]
[SourceTitle "playchess.com"]
[Source "ChessBase"]
[SourceQuality "1"]
[TimeControl "5400+30"]

1. e4 {[%emt 0:00:30]} e6 {[%emt 0:02:00]} 2. d4 {[%emt 0:00:00]} d5 {[%emt 0:00:00]} 3. Nc3 {[%emt 0:00:00]} Bb4 {[%emt 0:01:00]} 4. exd5 {[%emt 0:00:30]} exd5 {[%emt 0:00:00]} 5. Bd3 {[%emt 0:00:00] LiveBook: 1775 Games} Nc6 {[%emt 0:02:00]} 6. a3 {[%emt 0:03:00]} Be7 {[%emt 0:03:30]} 7. Nge2 {[%emt 0:01:30] C01: French: Exchange Variation} (7. Nf3 Nf6 8. h3 O-O 9. O-O h6 10. Bf4 Bd6 11. Qd2 a6 12. Rfe1 Bxf4 13. Qxf4 Be6 14. Re3 Nh5 {½-½ (59) Andreikin,D (2720)-Dubov,D (2661) Berlin 2015}) 7... Nf6 {[%emt 0:00:30]} 8. f3 $146 {[%emt 0:02:30]} ({Predecessor:} 8. O-O a6 9. h3 h6 10. Be3 Bd6 11. Ng3 Ne7 12. Qf3 Be6 13. Nce2 Ng6 14. Nf4 Nxf4 15. Bxf4 Bxf4 16. Qxf4 {1-0 (55) Jovanovic,Z (2518)-Djoric,D (2268) Sarajevo 2015}) 8... O-O {[%emt 0:03:30]} 9. Be3 {[%emt 0:05:30]} Be6 {[%emt 0:04:30]} 10. Qd2 {[%emt 0:03:30]} Qd7 {[%emt 0:03:30]} (10... Na5 $11 {keeps the balance.}) 11. g4 {[%emt 0:13:30]} a6 {[%emt 0:08:30]} 12. Nf4 {[%emt 0:06:30]} Ne8 {[%emt 0:10:30]} 13. h4 {[%emt 0:07:30]} Bd6 {[%emt 0:07:30]} 14. h5 {[%emt 0:06:30]} Bxf4 {[%emt 0:03:30]} 15. Bxf4 {[%emt 0:01:30]} Nd6 {[%emt 0:04:30]} 16. O-O-O $16 {[%emt 0:11:30]} b5 {[%emt 0:04:30]} 17. Ne2 {[%emt 0:02:30]} Nc4 {[%emt 0:00:30]} 18. Qe1 {[%emt 0:03:30]} Qe7 {[%emt 0:06:30]} 19. Bxc4 {[%emt 0:07:30]} bxc4 {[%emt 0:00:30]} 20. Qg3 {[%emt 0:00:30]} Ra7 {[%emt 0:03:30]} 21. Nc3 {[%emt 0:01:30]} Rb7 {[%emt 0:01:30]} 22. h6 {[%emt 0:04:19]} g6 {[%emt 0:16:24]} 23. Rhe1 {[%emt 0:00:56]} g5 {[%emt 0:08:33]} 24. Nxd5 {[%emt 0:04:17]} Qd8 {[%emt 0:00:06]} 25. Nc3 {[%emt 0:00:00]} gxf4 {[%emt 0:01:10]} 26. Qxf4 {[%emt 0:00:07]} Bc8 {[%emt 0:04:41]} 27. d5 {[%emt 0:03:06]} Nb8 {[%emt 0:00:02]} 28. Qd4 {[%emt 0:01:48]} Qg5+ {[%emt 0:00:32]} 29. f4 {[%emt 0:00:36]} Qxh6 {[%emt 0:00:13]} 30. Ne4 {[%emt 0:04:12]} Qxf4+ {[%emt 0:01:01]} 31. Kb1 {[%emt 0:00:30]} Nd7 {[%emt 0:00:00]} 32. g5 {[%emt 0:00:47]} Rb6 {[%emt 0:00:55]} 33. Rh1 {[%emt 0:01:33]} Qe5 {[%emt 0:00:34]} 34. Nf6+ {[%emt 0:02:02]} Rxf6 {[%emt 0:00:05]} 35. Qh4 {[%emt 0:00:00]} Rh6 {[%emt 0:01:12]} 36. Qxh6 {[%emt 0:00:40]} Qg7 {[%emt 0:00:30]} 37. Qc6 {[%emt 0:00:00]} Ne5 {[%emt 0:00:40]} 38. Qxc7 {[%emt 0:00:01]} Bf5 {[%emt 0:00:00]} 39. d6 {[%emt 0:00:37]} Rc8 {[%emt 0:00:24]} 40. Qb7 {[%emt 0:00:57]} Nc6 {[%emt 0:00:52]} 41. d7 {[%emt 0:00:42]} Rb8 {[%emt 0:00:32]} 42. Qxb8+ {[%emt 0:00:05]} 1-0

[Event "1st Turkish League 2017"]
[Site "Konya"]
[Date "2017.07.19"]
[Round "4"]
[White "Annaberdiyev, Babageldi"]
[Black "Keler, Faruk"]
[Result "0-1"]
[ECO "A08"]
[WhiteElo "2262"]
[BlackElo "2262"]
[Annotator "ChessBase"]
[PlyCount "102"]
[EventType "team-tourn"]
[EventCountry "TUR"]
[SourceTitle "playchess.com"]
[Source "ChessBase"]
[SourceQuality "1"]
[TimeControl "5400+30"]

1. Nf3 {[%emt 0:00:30]} d5 {[%emt 0:01:00]} 2. g3 {[%emt 0:00:30]} Nf6 {[%emt 0:00:30]} 3. Bg2 {[%emt 0:00:30]} g6 {[%emt 0:03:30]} 4. O-O {[%emt 0:00:30]} Bg7 {[%emt 0:00:00]} 5. d3 {[%emt 0:00:30]} O-O {[%emt 0:00:00]} 6. Nbd2 {[%emt 0:00:30]} c5 {[%emt 0:03:30]} 7. e4 {[%emt 0:00:30]} Nc6 {[%emt 0:00:30]} 8. Re1 {[%emt 0:00:30]} e5 {[%emt 0:02:30]} 9. h3 {[%emt 0:03:30]} h6 {[%emt 0:03:30]} 10. c3 {[%emt 0:18:30]} b6 {[%emt 0:07:30]} 11. exd5 {[%emt 0:19:30]} Nxd5 {[%emt 0:00:30]} 12. Nc4 {[%emt 0:00:30]} Re8 {[%emt 0:01:30]} 13. d4 {[%emt 0:02:30]} cxd4 {[%emt 0:14:30]} 14. cxd4 {[%emt 0:00:30]} exd4 {[%emt 0:03:30]} 15. Rxe8+ {[%emt 0:01:30]} Qxe8 {[%emt 0:00:00]} 16. Nxd4 {[%emt 0:03:30]} Nxd4 {[%emt 0:01:00]} 17. Bxd5 {[%emt 0:00:00]} Be6 {[%emt 0:04:30]} 18. Bxa8 {[%emt 0:11:00]} Qxa8 {[%emt 0:01:30]} 19. Ne3 {[%emt 0:00:30]} Nf3+ {[%emt 0:08:30]} 20. Kg2 {[%emt 0:00:30]} Bd4 {[%emt 0:00:30]} 21. Kf1 {[%emt 0:06:30]} Bxe3 {[%emt 0:12:30]} 22. fxe3 {[%emt 0:01:30]} Bc4+ {[%emt 0:00:30]} 23. Kf2 {[%emt 0:00:30]} Ng5 {[%emt 0:00:30]} 24. e4 {[%emt 0:01:30]} Nxe4+ {[%emt 0:00:30]} 25. Kg1 {[%emt 0:08:01]} Nxg3 {[%emt 0:01:30]} 26. Kf2 {[%emt 0:08:24]} Be2 {[%emt 0:06:30]} 27. Qb3 {[%emt 0:00:15]} Nf5 {[%emt 0:01:30]} 28. Bxh6 {[%emt 0:04:31]} Qe4 {[%emt 0:04:55]} 29. Bg5 {[%emt 0:00:18]} Bc4 {[%emt 0:04:15]} 30. Qc3 {[%emt 0:03:33]} Qe2+ {[%emt 0:00:49]} 31. Kg1 {[%emt 0:00:02]} Bd5 {[%emt 0:00:15]} 32. Qd2 {[%emt 0:00:40]} Qf3 {[%emt 0:00:10]} 33. Rc1 {[%emt 0:02:13]} Qg3+ {[%emt 0:04:59]} 34. Kf1 {[%emt 0:00:30]} Qxh3+ {[%emt 0:00:00]} 35. Kf2 {[%emt 0:01:19]} Qg2+ {[%emt 0:01:36]} 36. Ke1 {[%emt 0:00:04]} Qg1+ {[%emt 0:00:54]} 37. Ke2 {[%emt 0:00:30]} Qg4+ {[%emt 0:00:00]} 38. Kf2 {[%emt 0:00:18]} Qf3+ {[%emt 0:05:13]} 39. Ke1 {[%emt 0:01:07]} Qh1+ {[%emt 0:04:09]} 40. Kf2 {[%emt 0:00:12]} Qg2+ {[%emt 0:00:10]} 41. Ke1 {[%emt 0:00:06]} Qg1+ {[%emt 0:00:30]} 42. Ke2 {[%emt 0:00:30]} Qg4+ {[%emt 0:00:00]} 43. Kf2 {[%emt 0:00:10]} Nd4 {[%emt 0:00:08]} 44. Rg1 {[%emt 0:01:36]} Qf3+ {[%emt 0:00:33]} 45. Ke1 {[%emt 0:00:30]} Qe4+ {[%emt 0:00:00]} 46. Kf2 {[%emt 0:00:00]} Nf3 {[%emt 0:00:43]} 47. Qc1 {[%emt 0:00:44]} Nxg1 {[%emt 0:00:59]} 48. Qxg1 {[%emt 0:00:30]} Qc2+ {[%emt 0:00:00]} 49. Kg3 {[%emt 0:00:13]} Qxb2 {[%emt 0:00:00]} 50. Qd1 {[%emt 0:00:49]} Qg2+ {[%emt 0:00:27]} 51. Kf4 {[%emt 0:00:00]} Qf2+ {[%emt 0:00:00]} 0-1

[Event "1st Turkish League 2017"]
[Site "Konya"]
[Date "2017.07.19"]
[Round "4"]
[White "Isik, Alparslan"]
[Black "Koksal, Ege"]
[Result "0-1"]
[ECO "E02"]
[WhiteElo "2211"]
[BlackElo "2390"]
[Annotator "NA"]
[PlyCount "54"]
[EventType "team-tourn"]
[EventCountry "TUR"]
[SourceTitle "playchess.com"]
[Source "ChessBase"]
[SourceQuality "1"]
[TimeControl "5400+30"]

1. Nf3 {[%emt 0:00:30]} Nf6 {[%emt 0:01:00]} 2. c4 {[%emt 0:00:30]} e6 {[%emt 0:00:30]} 3. g3 {[%emt 0:00:30]} d5 {[%emt 0:00:00]} 4. d4 {[%emt 0:00:00]} dxc4 {[%emt 0:00:00]} 5. Qa4+ {[%emt 0:00:00]} Nbd7 {[%emt 0:01:30]} 6. Bg2 {[%emt 0:00:00]} a6 {[%emt 0:00:00]} 7. Nc3 {[%emt 0:00:00]} Rb8 {[%emt 0:08:00]} 8. Qxc4 {[%emt 0:01:30]} b5 {[%emt 0:00:00]} 9. Qd3 {[%emt 0:04:30]} Bb7 {[%emt 0:00:00]} 10. O-O {[%emt 0:02:30]} c5 {[%emt 0:00:30] LiveBook: 91 Games} 11. Bf4 {[%emt 0:08:30]} Rc8 {[%emt 0:00:30]} 12. dxc5 {[%emt 0:05:30]} Bxc5 {[%emt 0:02:30]} 13. Rfd1 {[%emt 0:13:30]} Qb6 {[%emt 0:16:30]} 14. e3 {[%emt 0:03:30]} O-O $11 {[%emt 0:03:30]} 15. Rac1 {[%emt 0:05:30]} Rfd8 {[%emt 0:04:30]} 16. Bd6 {[%emt 0:06:30]} Bxf3 {[%emt 0:36:30]} 17. Bxf3 {[%emt 0:00:00]} Ne5 {[%emt 0:00:30]} 18. Bxc5 {[%emt 0:13:00]} Nxf3+ {[%emt 0:00:30]} 19. Kh1 {[%emt 0:07:30]} Qc7 {[%emt 0:05:16]} 20. Qe2 {[%emt 0:04:30]} Ng5 {[%emt 0:01:14]} 21. b4 {[%emt 0:11:20]} Qb7+ {[%emt 0:02:50]} 22. e4 {[%emt 0:00:12]} Rxd1+ {[%emt 0:00:21]} 23. Nxd1 {[%emt 0:07:04]} Nfxe4 {[%emt 0:00:38]} 24. f3 {[%emt 0:01:42]} Nxc5 {[%emt 0:00:49]} 25. Rxc5 {[%emt 0:00:05]} Rxc5 {[%emt 0:00:25]} 26. bxc5 {[%emt 0:00:01]} Nxf3 {[%emt 0:00:00]} 27. Qg2 {[%emt 0:00:03]} Qe4 {[%emt 0:00:28]} 0-1

[Event "1st Turkish League 2017"]
[Site "Konya"]
[Date "2017.07.19"]
[Round "4"]
[White "Keles, Cengiz"]
[Black "Erturan, Yakup"]
[Result "0-1"]
[ECO "E63"]
[WhiteElo "2124"]
[BlackElo "2371"]
[Annotator "NA"]
[PlyCount "66"]
[EventType "team-tourn"]
[EventCountry "TUR"]
[SourceTitle "playchess.com"]
[Source "ChessBase"]
[SourceQuality "1"]
[TimeControl "5400+30"]

1. d4 {[%emt 0:00:30]} Nf6 {[%emt 0:01:00]} 2. Nf3 {[%emt 0:00:30]} g6 {[%emt 0:00:30]} 3. g3 {[%emt 0:00:00]} Bg7 {[%emt 0:01:30]} 4. Bg2 {[%emt 0:02:00]} O-O {[%emt 0:00:30]} 5. O-O {[%emt 0:00:30]} d6 {[%emt 0:00:30]} 6. c4 {[%emt 0:00:30]} Nc6 {[%emt 0:00:30]} 7. Nc3 {[%emt 0:00:30]} a6 {[%emt 0:00:30]} 8. b3 {[%emt 0:03:30]} Bf5 {[%emt 0:01:30]} 9. Bb2 {[%emt 0:02:30]} Ne4 {[%emt 0:00:30]} 10. e3 {[%emt 0:02:30] E63: King's Indian: Fianchetto: Panno Variation with 7...a6} (10. Nd5 e5 11. dxe5 dxe5 12. Nh4 Nd6 13. Ba3 Be6 14. Nxc7 Qxc7 15. Bxd6 Qa5 16. Bxf8 Rxf8 17. Qe1 Qa3 {1-0 (68) Bok,B (2594)-Van Foreest,J (2615) Amstelveen 2016}) 10... Nxc3 {[%emt 0:03:30]} 11. Bxc3 {[%emt 0:00:30]} Be4 {[%emt 0:00:00]} 12. Rc1 $146 {[%emt 0:05:30]} ({Predecessor:} 12. Bh3 e5 13. d5 Ne7 14. Rc1 Bf5 15. Bxf5 Nxf5 16. e4 Ne7 17. Nd2 Bh6 {0-1 (45) Nguyen,T-Bui,D Vung Tau 2000}) 12... d5 {[%emt 0:12:00]} 13. Ba1 {[%emt 0:06:30]} e6 {[%emt 0:02:30]} 14. Qd2 {[%emt 0:11:30]} Qe7 {[%emt 0:07:30]} 15. Rfd1 {[%emt 0:09:30]} Rfd8 {[%emt 0:01:30]} 16. Qe2 {[%emt 0:02:30]} a5 {[%emt 0:03:30]} 17. Ne5 {[%emt 0:07:30]} Bxe5 {[%emt 0:02:30]} 18. Bxe4 {[%emt 0:01:30]} dxe4 {[%emt 0:05:30]} 19. dxe5 {[%emt 0:00:00]} a4 $11 {[%emt 0:03:30]} 20. Bc3 {[%emt 0:10:00]} Qa3 {[%emt 0:08:30]} 21. Qc2 {[%emt 0:08:30]} Rd3 {[%emt 0:03:30]} 22. Rxd3 {[%emt 0:07:58]} exd3 {[%emt 0:01:30]} 23. Qb1 {[%emt 0:00:22]} axb3 {[%emt 0:04:30]} 24. axb3 {[%emt 0:00:08]} Ra6 {[%emt 0:01:30]} 25. b4 {[%emt 0:01:34]} Ra4 {[%emt 0:00:30]} 26. b5 {[%emt 0:01:19]} Nb4 {[%emt 0:00:30]} 27. Bd2 {[%emt 0:05:04]} Nc2 {[%emt 0:01:30]} 28. Rxc2 {[%emt 0:03:28]} dxc2 {[%emt 0:00:30]} 29. Qxc2 {[%emt 0:00:02]} c6 {[%emt 0:06:30]} 30. bxc6 {[%emt 0:03:48]} bxc6 {[%emt 0:00:30]} 31. Bc1 {[%emt 0:01:08]} Qb4 {[%emt 0:13:46]} 32. c5 {[%emt 0:02:46]} Qc4 {[%emt 0:04:06]} 33. Qd1 {[%emt 0:00:27]} Ra1 {[%emt 0:01:39]} 0-1

[Event "1st Turkish League 2017"]
[Site "Konya"]
[Date "2017.07.19"]
[Round "4"]
[White "Caglar, Ahmet Ata"]
[Black "Akdag, Omer Amir"]
[Result "1-0"]
[ECO "B70"]
[WhiteElo "2082"]
[BlackElo "1685"]
[Annotator "NA"]
[PlyCount "55"]
[EventType "team-tourn"]
[EventCountry "TUR"]
[SourceTitle "playchess.com"]
[Source "ChessBase"]
[SourceQuality "1"]
[TimeControl "5400+30"]

1. e4 {[%emt 0:00:30]} c5 {[%emt 0:01:00]} 2. Nf3 {[%emt 0:00:00]} d6 {[%emt 0:00:30]} 3. d4 {[%emt 0:01:00]} cxd4 {[%emt 0:00:30]} 4. Nxd4 {[%emt 0:00:00]} Nf6 {[%emt 0:00:00]} 5. Nc3 {[%emt 0:00:00]} Nc6 {[%emt 0:00:00]} 6. g3 {[%emt 0:00:00]} g6 {[%emt 0:01:30]} 7. Bg2 {[%emt 0:00:00] LiveBook: 451 Games} Nxd4 {[%emt 0:00:30]} 8. Qxd4 {[%emt 0:00:30]} Bg7 {[%emt 0:00:30]} 9. O-O {[%emt 0:03:30]} O-O {[%emt 0:00:30]} 10. Qd3 {[%emt 0:01:30]} Be6 {[%emt 0:02:30]} 11. Nd5 {[%emt 0:00:30]} Nd7 {[%emt 0:00:30] B70: Sicilian Dragon: 6 g3 and 6 Be2 (without a later Be3)} (11... Rc8 12. c3 a6 13. Re1 Nd7 14. a4 Ne5 15. Qd1 Re8 16. h3 Nc4 17. Kh2 Bd7 18. Re2 b5 19. axb5 Bxb5 {½-½ (74) Karjakin,S (2781)-Topalov,V (2749) Paris 2017}) 12. c3 {[%emt 0:09:30]} Rc8 {[%emt 0:02:30]} 13. Bg5 {[%emt 0:01:30]} Bxd5 {[%emt 0:01:30]} 14. exd5 {[%emt 0:00:30] [#]} h6 $146 {[%emt 0:01:30]} ({Predecessor:} 14... Ne5 15. Qe2 Re8 16. h4 Qc7 17. Rfe1 a6 18. h5 Qc4 19. hxg6 hxg6 20. Qxc4 Nxc4 21. Rxe7 Nxb2 22. Rxb7 Bxc3 {0-1 (46) Haznedaroglu,K (2360)-Gelashvili,T (2552) Antalya 2002}) 15. Be3 {[%emt 0:04:30]} a6 {[%emt 0:11:30]} 16. Qd2 {[%emt 0:02:30]} Kh7 {[%emt 0:01:30]} 17. Rae1 {[%emt 0:03:30]} Ne5 {[%emt 0:01:30]} 18. Qe2 {[%emt 0:00:30]} Nc4 {[%emt 0:09:30]} 19. Bc1 {[%emt 0:00:30]} Be5 {[%emt 0:08:30]} (19... Bf6 $142) 20. Bh3 {[%emt 0:04:30]} (20. f4 $18) 20... Rc7 {[%emt 0:06:30]} 21. b3 {[%emt 0:04:30]} Nb6 $16 {[%emt 0:00:30]} 22. Qe3 {[%emt 0:02:30]} Rxc3 {[%emt 0:14:30]} 23. Qxh6+ {[%emt 0:00:30]} Kg8 {[%emt 0:00:00]} 24. Rxe5 {[%emt 0:01:30]} dxe5 {[%emt 0:04:00]} 25. Be6 {[%emt 0:08:30]} Rxc1 {[%emt 0:03:30]} 26. Qxg6+ {[%emt 0:00:30]} Kh8 {[%emt 0:00:00]} 27. Qh6+ {[%emt 0:00:00]} Kg8 {[%emt 0:00:00]} 28. Bf5 {[%emt 0:00:00]} 1-0